bitfinex/quotes_BTCUSD_20250515
["timestamp","ask_amount","ask_price","bid_price","bid_amount"]
[1747318120322,1.0417362,102080.0,102070.0,0.01549437]
[1747318120547,1.0733362,102080.0,102070.0,0.01549437]
[1747318120801,0.8415762,102080.0,102070.0,0.01549437]
[1747318121024,1.0731762,102080.0,102070.0,0.01549437]
[1747318122539,0.55555878,102060.0,102050.0,0.23272]
[1747318122709,0.72902019,102060.0,102050.0,0.23272]
[1747318123516,0.77742019,102060.0,102050.0,0.23272]
[1747318124316,0.77742019,102060.0,102050.0,0.23472]
[1747318124682,0.77742019,102060.0,102050.0,0.002]
[1747318124683,0.78742019,102060.0,102050.0,0.002]
[1747318124892,0.78742019,102060.0,102050.0,0.001]
[1747318125529,0.21560103,102040.0,102030.0,0.29322]
[1747318125746,0.48820111,102040.0,102030.0,0.29370306]
[1747318127042,0.48820111,102040.0,102030.0,0.29670306]
[1747318127251,0.48820111,102040.0,102030.0,0.06518306]
[1747318127470,0.48820111,102040.0,102030.0,0.29670306]
[1747318127683,0.44704103,102040.0,102030.0,0.29670306]
[1747318128729,0.44704103,102040.0,102030.0,0.29870306]
[1747318130515,0.46155292,102040.0,102030.0,0.29870306]
[1747318134278,0.46155292,102040.0,102030.0,0.03658306]
[1747318134279,0.55886232,102040.0,102030.0,0.03658306]
[1747318134496,0.55886232,102040.0,102030.0,0.23704306]
[1747318134703,0.6421401,102040.0,102030.0,0.23704306]
[1747318135802,0.9821401,102040.0,102030.0,0.23704306]
[1747318137507,0.7507001,102040.0,102030.0,0.23704306]
[1747318137678,0.9817001,102040.0,102030.0,0.27004306]
[1747318137878,0.9817001,102040.0,102030.0,0.30204306]
[1747318138996,0.9816201,102040.0,102030.0,0.30204306]
[1747318139208,0.66742232,102040.0,102030.0,0.30204306]
[1747318139420,0.89834232,102040.0,102030.0,0.30204306]
[1747318139772,0.80103292,102040.0,102030.0,0.30204306]
[1747318142944,0.21051345,102040.0,102030.0,0.07048306]
[1747318143150,0.4804724,102040.0,102030.0,0.68640299]
[1747318143562,0.4804724,102040.0,102030.0,0.30204306]
[1747318144347,0.4804324,102040.0,102030.0,0.30204306]
[1747318144573,0.19603999,102020.0,102010.0,0.02750787]
[1747318144775,0.23523941,102030.0,102020.0,0.01454085]
[1747318144978,0.21563859,102030.0,102020.0,0.0973094]
[1747318145388,0.21563811,102030.0,102020.0,0.0973094]
[1747318145603,0.23523941,102030.0,102020.0,0.48166933]
[1747318145811,0.23523941,102030.0,102020.0,0.0973094]
[1747318146615,0.23523941,102030.0,102020.0,0.1053094]
[1747318147691,0.23523941,102030.0,102020.0,0.1701094]
[1747318148206,0.22543914,102030.0,102020.0,0.1701094]
[1747318148572,0.21563859,102030.0,102020.0,0.30436]
[1747318148784,0.23023229,102030.0,102020.0,0.30436]
[1747318148957,0.30814804,102030.0,102020.0,0.0728]
[1747318149160,0.30814804,102030.0,102020.0,0.30436]
[1747318150684,0.29355434,102030.0,102020.0,0.30436]
[1747318151728,0.21563859,102030.0,102020.0,0.30436]
[1747318152776,0.21563859,102030.0,102020.0,0.27156]
[1747318153654,0.21563859,102030.0,102020.0,0.30336]
[1747318155991,0.21563859,102030.0,102020.0,0.0718]
[1747318156204,0.21563802,102030.0,102020.0,0.68639993]
[1747318156354,0.22543896,102030.0,102020.0,0.30204]
[1747318156561,0.2156385,102030.0,102020.0,0.30204]
[1747318156762,0.21563802,102030.0,102020.0,0.3993494]
[1747318156965,0.22543896,102030.0,102020.0,0.3993494]
[1747318157563,0.2156385,102030.0,102020.0,0.3993494]
[1747318158612,0.2812777,102030.0,102020.0,0.0718]
[1747318158911,0.2812777,102030.0,102020.0,0.23824]
[1747318159136,0.2156385,102030.0,102020.0,0.26834]
[1747318159360,0.2156385,102030.0,102020.0,0.30144]
[1747318160068,0.2156385,102030.0,102020.0,0.30148]
[1747318163588,0.2156385,102030.0,102020.0,0.23828]
[1747318166931,0.2478385,102030.0,102020.0,0.23828]
[1747318167136,0.32755927,102030.0,102020.0,0.23828]
[1747318167553,0.29535927,102030.0,102020.0,0.23828]
[1747318169051,0.2156385,102030.0,102020.0,0.23828]
[1747318169216,0.4453585,102030.0,102020.0,0.23828]
[1747318169787,0.4784585,102030.0,102020.0,0.23828]
[1747318169991,0.3789479,102030.0,102020.0,0.23828]
[1747318170186,0.6086279,102030.0,102020.0,0.23828]
[1747318170412,0.69833361,102030.0,102020.0,0.23828]
[1747318171003,0.46865361,102030.0,102020.0,0.23828]
[1747318171409,0.46865361,102030.0,102020.0,0.23028]
[1747318171617,0.66539361,102030.0,102020.0,0.23128]
[1747318172041,0.2156385,102030.0,102020.0,0.23128]
[1747318172231,0.4452385,102030.0,102020.0,0.23228]
[1747318172420,0.2156385,102030.0,102020.0,0.23228]
[1747318172616,0.4452385,102030.0,102020.0,0.23228]
[1747318173300,0.4451985,102030.0,102020.0,0.23228]
[1747318173499,0.4451985,102030.0,102020.0,0.00204]
[1747318173706,0.6420991,102030.0,102020.0,0.00204]
[1747318173909,0.6726991,102030.0,102020.0,0.00204]
[1747318174123,2.2986991,102030.0,102020.0,0.00204]
[1747318174571,2.2986591,102030.0,102020.0,0.00204]
[1747318174775,2.6386591,102030.0,102020.0,0.00204]
[1747318176937,2.6385791,102030.0,102020.0,0.00204]
[1747318179513,2.6383791,102030.0,102020.0,0.00204]
[1747318180705,2.6482191,102030.0,102020.0,0.00204]
[1747318180915,2.66275995,102030.0,102020.0,0.00204]
[1747318181391,2.66275995,102030.0,102020.0,0.00104]
[1747318181540,2.66275995,102030.0,102020.0,4e-05]
[1747318181719,2.66575995,102030.0,102020.0,4e-05]
[1747318181918,2.67575995,102030.0,102020.0,4e-05]
[1747318182143,2.70288609,102030.0,102020.0,4e-05]
[1747318182552,2.4119391,102030.0,102020.0,4e-05]
[1747318182728,2.6411791,102030.0,102020.0,4e-05]
[1747318183149,2.6401791,102030.0,102020.0,4e-05]
[1747318183440,2.6521791,102030.0,102020.0,4e-05]
[1747318183877,2.66671995,102030.0,102020.0,4e-05]
[1747318185499,2.67671995,102030.0,102020.0,4e-05]
[1747318186773,2.70615395,102030.0,102020.0,4e-05]
[1747318186981,2.71608103,102030.0,102020.0,4e-05]
[1747318192322,2.48684103,102030.0,102020.0,4e-05]
[1747318192545,2.71576103,102030.0,102020.0,4e-05]
[1747318194267,0.60754179,102020.0,102010.0,0.00014465]
[1747318194479,0.86056059,102020.0,102010.0,0.00014465]
[1747318194700,0.87510144,102020.0,102010.0,0.00014465]
[1747318195586,0.87610144,102020.0,102010.0,0.00014465]
[1747318197848,0.91021215,102000.0,101990.0,6e-05]
[1747318198080,1.34359095,102000.0,101990.0,0.00015444]
[1747318198300,1.3581318,102000.0,101990.0,0.00015444]
[1747318198967,1.3681318,102000.0,101990.0,0.00015444]
[1747318199202,1.3731318,102000.0,101990.0,0.00315444]
[1747318199646,1.3731318,102000.0,101990.0,0.00015444]
[1747318200098,1.3791318,102000.0,101990.0,0.00115444]
[1747318200303,1.3691318,102000.0,101990.0,0.00115444]
[1747318200550,1.3691318,102000.0,101960.0,0.68262]
[1747318200551,0.21572789,101980.0,101960.0,0.68262]
[1747318200765,0.47359158,101980.0,101970.0,0.01554455]
[1747318200981,0.48803044,101980.0,101970.0,0.01554455]
[1747318201385,0.88507129,101980.0,101970.0,0.01554455]
[1747318202115,1.05671044,101980.0,101970.0,0.01554455]
[1747318202326,0.94455615,101980.0,101970.0,0.07734455]
[1747318202554,0.71987615,101980.0,101970.0,0.07734455]
[1747318202772,0.90015615,101980.0,101970.0,0.07734455]
[1747318203812,0.89815615,101980.0,101970.0,0.07734455]
[1747318204047,0.99546555,101980.0,101970.0,0.07734455]
[1747318204502,0.76678555,101980.0,101970.0,0.01554455]
[1747318204728,1.06622555,101980.0,101970.0,0.01554455]
[1747318205404,0.2157702,101960.0,101950.0,0.02784455]
[1747318205627,0.35427195,101960.0,101950.0,0.02798951]
[1747318206555,0.92287195,101960.0,101950.0,0.02798951]
[1747318206757,0.92287195,101960.0,101950.0,0.00114496]
[1747318206960,0.92287195,101960.0,101950.0,0.00314496]
[1747318209043,0.92287195,101960.0,101950.0,0.00214496]
[1747318209228,0.92387195,101960.0,101950.0,0.00014496]
[1747318209658,0.98677195,101960.0,101950.0,0.00014496]
[1747318210130,0.99677195,101960.0,101950.0,0.00014496]
[1747318210978,1.00187894,101960.0,101950.0,0.00014496]
[1747318211181,0.92889894,101960.0,101950.0,0.00014496]
[1747318211408,0.70037894,101960.0,101950.0,0.03084496]
[1747318211650,0.92889894,101960.0,101950.0,0.03084496]
[1747318212275,0.92379195,101960.0,101950.0,0.06154496]
[1747318212483,0.4452902,101960.0,101950.0,0.06154496]
[1747318212925,0.8825996,101960.0,101950.0,0.00014496]
[1747318213976,0.9462996,101960.0,101950.0,0.00014496]
[1747318214616,0.9153996,101960.0,101950.0,0.00014496]
[1747318214830,1.012709,101960.0,101950.0,0.00014496]
[1747318215036,0.979909,101960.0,101950.0,0.00014496]
[1747318216102,0.751389,101960.0,101950.0,0.03134496]
[1747318216310,0.8825196,101960.0,101950.0,0.03134496]
[1747318216800,0.8825196,101960.0,101950.0,0.00014496]
[1747318217015,0.9472196,101960.0,101950.0,0.00014496]
[1747318218189,0.9766706,101960.0,101950.0,0.00014496]
[1747318218407,1.07398,101960.0,101950.0,0.00014496]
[1747318218831,0.55581253,101940.0,101930.0,0.032]
[1747318219032,0.20602354,101930.0,101920.0,0.48616]
[1747318219215,0.43438354,101930.0,101920.0,0.48616]
[1747318219465,0.44443674,101930.0,101920.0,0.0626]
[1747318219675,0.77438354,101930.0,101920.0,0.0626]
[1747318220286,0.54604375,101920.0,101910.0,0.07547916]
[1747318221137,0.70635315,101920.0,101910.0,0.01007916]
[1747318221344,0.64335315,101920.0,101910.0,0.01007916]
[1747318221545,0.77026728,101920.0,101910.0,0.01007916]
[1747318221754,0.86287008,101920.0,101910.0,0.01007916]
[1747318221957,0.89312849,101920.0,101910.0,0.01007916]
[1747318222906,0.89312849,101920.0,101910.0,0.01707916]
[1747318223151,0.89312849,101920.0,101880.0,0.1379812]
[1747318223152,0.55591844,101890.0,101880.0,0.1379812]
[1747318223350,1.00512848,101890.0,101880.0,0.0328]
[1747318224393,0.77684848,101890.0,101880.0,0.0328]
[1747318224616,0.88154784,101890.0,101880.0,0.066]
[1747318224724,0.88150784,101890.0,101880.0,0.066]
[1747318224942,0.88150784,101890.0,101860.0,0.1527811]
[1747318224943,0.21596083,101870.0,101860.0,0.1527811]
[1747318225368,0.42460652,101880.0,101860.0,0.54498304]
[1747318225568,0.22828,101880.0,101870.0,0.67749987]
[1747318225766,0.20612417,101880.0,101870.0,0.89416095]
[1747318225983,0.20612417,101880.0,101870.0,1.0060112]
[1747318226199,0.19628798,101900.0,101880.0,0.23556922]
[1747318226406,0.19628798,101900.0,101890.0,0.06216272]
[1747318226407,0.20624227,101900.0,101890.0,0.06216272]
[1747318226617,0.45414916,101900.0,101890.0,0.15947212]
[1747318226821,0.44433581,101900.0,101890.0,0.28868]
[1747318227031,0.50228768,101900.0,101890.0,0.28868]
[1747318227686,0.44433581,101900.0,101890.0,0.28868]
[1747318228082,0.44433466,101900.0,101890.0,0.3859894]
[1747318228290,0.00014085,101900.0,101890.0,1.17658029]
[1747318228495,0.22585058,101900.0,101890.0,1.41487469]
[1747318228702,0.23566479,101900.0,101890.0,1.20877018]
[1747318228877,0.21703781,101900.0,101890.0,1.41887469]
[1747318229080,0.2366647,101900.0,101890.0,1.02470036]
[1747318229307,0.2366647,101900.0,101890.0,1.41887469]
[1747318229544,0.22685174,101900.0,101890.0,1.21277018]
[1747318229721,0.22685174,101900.0,101890.0,0.98429018]
[1747318229929,0.21703859,101900.0,101890.0,0.82841025]
[1747318230191,0.20722524,101900.0,101890.0,0.82841025]
[1747318230528,0.21703849,101900.0,101890.0,0.82841025]
[1747318231948,0.20722466,101900.0,101890.0,1.41887469]
[1747318232149,0.22685039,101900.0,101890.0,1.428689]
[1747318232366,0.21703733,101900.0,101890.0,1.428689]
[1747318232576,0.23666412,101900.0,101890.0,1.42868919]
[1747318232795,0.23666412,101900.0,101890.0,1.22258458]
[1747318233023,0.22685058,101900.0,101890.0,1.40906029]
[1747318233231,0.23666402,101900.0,101890.0,1.4188746]
[1747318233449,0.03058003,101900.0,101890.0,1.42868881]
[1747318233732,0.22685068,101900.0,101890.0,1.42868881]
[1747318234123,0.22685068,101900.0,101890.0,1.41887469]
[1747318234333,0.26804488,101870.0,101860.0,0.0878011]
[1747318234491,0.26804488,101870.0,101860.0,0.10156008]
[1747318234492,0.23294937,101870.0,101860.0,0.10156008]
[1747318234726,0.21596102,101870.0,101860.0,0.10156008]
[1747318234939,0.2257762,101870.0,101860.0,0.13476008]
[1747318235153,0.21596102,101870.0,101860.0,0.16772339]
[1747318235364,0.21596102,101870.0,101860.0,0.39624339]
[1747318235582,0.21596102,101870.0,101860.0,0.10156008]
[1747318235844,0.38510503,101870.0,101860.0,0.33008008]
[1747318236056,0.31327042,101870.0,101860.0,0.33008008]
[1747318236258,0.54147042,101870.0,101860.0,0.33008008]
[1747318236462,0.54147042,101870.0,101860.0,0.2429399]
[1747318236892,0.54147042,101870.0,101860.0,0.2439399]
[1747318238652,0.31327042,101870.0,101860.0,0.2439399]
[1747318238862,0.44412102,101870.0,101860.0,0.2439399]
[1747318239314,0.21596102,101870.0,101860.0,0.2439399]
[1747318239510,0.44416102,101870.0,101860.0,0.2439399]
[1747318239747,0.44313261,101870.0,101860.0,0.2439399]
[1747318240572,0.44313261,101870.0,101860.0,0.0154199]
[1747318240790,0.60438621,101870.0,101860.0,0.2439399]
[1747318241231,0.54044201,101870.0,101860.0,0.2439399]
[1747318241865,0.44313261,101870.0,101860.0,0.2439399]
[1747318242112,0.43331647,101870.0,101860.0,0.2439399]
[1747318242354,0.45294885,101870.0,101860.0,0.3073399]
[1747318242596,0.44313281,101870.0,101860.0,0.3073399]
[1747318242806,0.21493223,101870.0,101860.0,0.3073399]
[1747318243010,0.22474866,101870.0,101860.0,0.3073399]
[1747318243453,0.21493281,101870.0,101860.0,0.3073399]
[1747318243673,0.20511609,101870.0,101860.0,0.6473399]
[1747318243898,0.22474808,101870.0,101860.0,0.6473399]
[1747318244113,0.23456451,101870.0,101860.0,0.6473399]
[1747318244325,0.23456451,101870.0,101860.0,0.66188075]
[1747318245012,0.22474885,101870.0,101860.0,0.66188075]
[1747318245448,0.2149329,101870.0,101860.0,0.66188075]
[1747318245872,0.43128228,101870.0,101860.0,0.2439799]
[1747318246093,0.77128228,101870.0,101860.0,0.2439799]
[1747318246916,0.73015805,101870.0,101860.0,0.2439799]
[1747318247123,0.6522423,101870.0,101860.0,0.2439799]
[1747318247350,0.7830929,101870.0,101860.0,0.2439799]
[1747318249762,0.4430929,101870.0,101860.0,0.2439799]
[1747318251805,0.43327667,101870.0,101860.0,0.2439799]
[1747318252205,0.43327667,101870.0,101860.0,0.2762799]
[1747318252450,0.19530024,101870.0,101860.0,0.2762799]
[1747318252616,0.2051158,101870.0,101860.0,1.02353685]
[1747318252818,0.19630938,101880.0,101870.0,0.0311]
[1747318253090,0.22575432,101880.0,101870.0,0.58397201]
[1747318253260,0.43428124,101890.0,101870.0,1.2196203]
[1747318253468,0.21593565,101890.0,101880.0,0.0629]
[1747318253879,0.21593603,101890.0,101880.0,0.0629]
[1747318254324,0.20612134,101890.0,101880.0,0.07744085]
[1747318254525,0.20612095,101890.0,101880.0,0.90138393]
[1747318254724,0.2257487,101890.0,101880.0,1.03525928]
[1747318254905,0.23556291,101890.0,101880.0,0.51475025]
[1747318255152,0.24537731,101890.0,101880.0,1.03525928]
[1747318255646,0.21593468,101890.0,101880.0,1.24138403]
[1747318255859,0.23556281,101890.0,101880.0,1.03525928]
[1747318256043,0.21703753,101900.0,101890.0,0.04724085]
[1747318256271,0.21703753,101900.0,101890.0,1.25314988]
[1747318256272,0.22685135,101900.0,101890.0,1.25314988]
[1747318256883,0.21703829,101900.0,101890.0,0.73264085]
[1747318257295,0.22103829,101900.0,101890.0,0.73364085]
[1747318258266,0.29895404,101900.0,101890.0,0.6532]
[1747318259984,0.22103829,101900.0,101890.0,0.6532]
[1747318260577,0.22103829,101900.0,101890.0,0.42504]
[1747318260776,0.22103829,101900.0,101890.0,0.65316]
[1747318260777,0.29895404,101900.0,101890.0,0.65316]
[1747318261832,0.22103829,101900.0,101890.0,0.42504]
[1747318262041,0.22103829,101900.0,101890.0,0.65316]
[1747318262863,0.21122514,101900.0,101890.0,0.65316]
[1747318263305,0.21057514,101900.0,101890.0,0.65316]
[1747318263889,0.21057485,101900.0,101890.0,0.65316]
[1747318264090,0.24001469,101900.0,101890.0,0.71886]
[1747318264263,0.24001469,101900.0,101890.0,1.23936903]
[1747318264664,0.24001469,101900.0,101890.0,0.71886]
[1747318264904,0.23020183,101900.0,101890.0,0.71886]
[1747318267445,0.21057456,101900.0,101890.0,1.47964301]
[1747318267596,0.23020097,101900.0,101890.0,1.46001449]
[1747318267857,0.2007617,101900.0,101890.0,1.25152301]
[1747318268055,0.21057456,101900.0,101890.0,1.48945703]
[1747318268351,0.21057456,101900.0,101890.0,1.4796431]
[1747318268352,0.22038762,101900.0,101890.0,1.4796431]
[1747318268534,0.21057456,101900.0,101890.0,0.94931967]
[1747318268745,0.21057456,101900.0,101890.0,1.4698287]
[1747318268895,0.23801431,101900.0,101890.0,0.73240085]
[1747318269131,0.23601431,101900.0,101890.0,1.25290988]
[1747318269338,0.20657447,101900.0,101890.0,1.34329623]
[1747318269557,0.20657456,101900.0,101890.0,1.34329633]
[1747318269765,0.20657456,101900.0,101890.0,1.46023348]
[1747318269766,0.001,101900.0,101890.0,1.46023348]
[1747318270399,0.001,101900.0,101890.0,2.18539612]
[1747318270804,0.001,101900.0,101890.0,2.19539612]
[1747318271010,0.43409151,101940.0,101920.0,0.69066951]
[1747318271011,0.21590081,101940.0,101920.0,0.69066951]
[1747318271154,0.2257105,101940.0,101930.0,0.61328264]
[1747318271355,0.22570972,101940.0,101930.0,0.61328264]
[1747318271602,0.20609141,101940.0,101930.0,0.22812]
[1747318272361,0.20609141,101940.0,101930.0,0.61328264]
[1747318272566,0.20623615,101940.0,101930.0,0.61328264]
[1747318272793,0.20923615,101940.0,101930.0,0.61428264]
[1747318273222,0.20923615,101940.0,101930.0,0.001]
[1747318273442,0.21123615,101940.0,101930.0,0.22908]
[1747318274291,0.21123615,101940.0,101930.0,0.61424264]
[1747318274638,0.22104536,101940.0,101930.0,0.61424264]
[1747318274849,0.22090261,101940.0,101930.0,0.86710703]
[1747318275046,0.22090261,101940.0,101930.0,0.91802727]
[1747318275245,0.01495366,101940.0,101930.0,0.91802727]
[1747318275447,0.00514474,101940.0,101930.0,1.01533667]
[1747318275654,0.21114758,101940.0,101930.0,1.01533667]
[1747318275904,0.23076619,101940.0,101930.0,1.01533667]
[1747318276236,0.02476277,101940.0,101930.0,1.01533667]
[1747318276529,0.03207197,101940.0,101930.0,1.01533667]
[1747318276655,0.02226267,101940.0,101930.0,1.01533667]
[1747318276859,0.01961793,101940.0,101930.0,1.01433667]
[1747318277404,0.02061793,101940.0,101930.0,1.01433667]
[1747318277602,0.22662183,101940.0,101930.0,0.07814085]
[1747318277866,0.21681272,101940.0,101930.0,0.22788]
[1747318278728,0.21681272,101940.0,101930.0,0.2522315]
[1747318279048,0.21681272,101940.0,101930.0,0.24242085]
[1747318279272,0.20700342,101940.0,101930.0,0.24242085]
[1747318279795,0.20602373,101930.0,101920.0,0.76831861]
[1747318279967,0.21583351,101930.0,101920.0,0.97032629]
[1747318280336,0.001,101940.0,101930.0,0.27118472]
[1747318280574,0.001,101940.0,101930.0,0.78375676]
[1747318280802,0.00980882,101940.0,101930.0,0.78375676]
[1747318281043,0.02942713,101940.0,101930.0,0.78375676]
[1747318281277,0.23543045,101940.0,101930.0,0.78375676]
[1747318281527,0.22562096,101940.0,101930.0,1.19305676]
[1747318281915,0.22562096,101940.0,101930.0,1.19505676]
[1747318282144,0.22562096,101940.0,101930.0,1.2097314]
[1747318282275,0.01961783,101940.0,101930.0,0.8004314]
[1747318282479,0.02942713,101940.0,101930.0,0.8004314]
[1747318282683,0.03923634,101940.0,101930.0,0.8014314]
[1747318282956,0.02942694,101940.0,101930.0,0.8014314]
[1747318283375,0.00980709,101960.0,101940.0,0.19619383]
[1747318283509,0.29375728,101970.0,101960.0,0.20596302]
[1747318283717,0.29366479,101970.0,101960.0,0.38516264]
[1747318283918,0.2157702,101960.0,101950.0,0.65168]
[1747318284134,0.2157702,101960.0,101950.0,0.66622085]
[1747318284634,0.2167702,101960.0,101950.0,0.66622085]
[1747318284991,0.2157702,101960.0,101950.0,0.66622085]
[1747318285352,0.2157702,101960.0,101950.0,0.65168]
[1747318285939,0.2489702,101960.0,101950.0,0.65168]
[1747318286168,0.2499702,101960.0,101950.0,0.65168]
[1747318286320,0.2499702,101960.0,101950.0,0.65164]
[1747318286741,0.2177702,101960.0,101950.0,0.65164]
[1747318289577,0.2811702,101960.0,101950.0,0.65164]
[1747318289810,0.2811702,101960.0,101950.0,0.4238]
[1747318290005,0.77400181,101960.0,101950.0,0.65164]
[1747318290182,0.7184796,101960.0,101950.0,0.65164]
[1747318293393,0.7184796,101960.0,101950.0,1.03680264]
[1747318293394,0.2177702,101960.0,101950.0,1.03680264]
[1747318293599,0.227577,101960.0,101950.0,1.01494586]
[1747318293808,0.2177704,101960.0,101950.0,0.65164]
[1747318295282,0.01180738,101960.0,101950.0,1.26713524]
[1747318295510,0.23738506,101960.0,101950.0,1.31875163]
[1747318295719,0.23738506,101960.0,101950.0,1.32855987]
[1747318295954,0.23738506,101960.0,101950.0,1.2893268]
[1747318296190,0.21777059,101960.0,101950.0,1.29913533]
[1747318296412,0.20796302,101960.0,101950.0,1.08334349]
[1747318296874,0.20796302,101960.0,101950.0,1.2893268]
[1747318297112,0.19815535,101960.0,101950.0,0.90416416]
[1747318297337,0.19815535,101960.0,101950.0,0.70798957]
[1747318297547,0.19815535,101960.0,101950.0,0.69818085]
[1747318297755,0.19815535,101960.0,101950.0,1.08334349]
[1747318298594,0.19815535,101960.0,101950.0,1.29913543]
[1747318298811,0.19815535,101960.0,101950.0,1.08334349]
[1747318299217,0.20796254,101960.0,101950.0,1.27951808]
[1747318299452,0.20796311,101960.0,101950.0,1.08334349]
[1747318299889,0.20796311,101960.0,101950.0,1.29913505]
[1747318300101,0.20796311,101960.0,101950.0,1.29913515]
[1747318300775,0.01180719,101960.0,101950.0,1.29913505]
[1747318300990,0.23738515,101960.0,101950.0,0.9139726]
[1747318301209,0.21777068,101960.0,101950.0,1.08334349]
[1747318301416,0.21777068,101960.0,101950.0,1.2893268]
[1747318301623,0.21777068,101960.0,101950.0,1.29913543]
[1747318301842,0.21777068,101960.0,101950.0,1.09315221]
[1747318302020,0.21777068,101960.0,101950.0,0.66618085]
[1747318303224,0.21777068,101960.0,101950.0,0.65164]
[1747318303758,0.28287068,101960.0,101950.0,0.65164]
[1747318305162,0.25037068,101960.0,101950.0,0.65164]
[1747318307167,0.25037068,101960.0,101950.0,0.4238]
[1747318307376,0.28187068,101960.0,101950.0,0.65164]
[1747318307972,0.28187068,101960.0,101950.0,0.65128]
[1747318308171,0.77477233,101960.0,101950.0,0.65128]
[1747318309480,0.71918008,101960.0,101950.0,0.65128]
[1747318312040,0.31508008,101960.0,101950.0,0.65132]
[1747318312255,0.44521068,101960.0,101950.0,1.03648264]
[1747318312446,0.44521068,101960.0,101950.0,1.24719808]
[1747318312688,0.44521068,101960.0,101950.0,1.05102349]
[1747318313990,0.42559535,101960.0,101950.0,0.66586085]
[1747318314997,0.19815535,101960.0,101950.0,0.4238]
[1747318315204,0.48745535,101960.0,101950.0,0.65128]
[1747318317306,0.58476475,101960.0,101950.0,0.65128]
[1747318318133,0.52286475,101960.0,101950.0,0.65128]
[1747318318379,0.42555535,101960.0,101950.0,1.03644264]
[1747318318589,0.42555535,101960.0,101950.0,1.06744264]
[1747318319228,0.45497796,101960.0,101950.0,1.31856671]
[1747318319438,0.002,101960.0,101950.0,1.34799154]
[1747318319606,0.23738467,101960.0,101950.0,1.32837515]
[1747318319867,0.21777058,101960.0,101950.0,1.11258349]
[1747318320996,0.21777058,101960.0,101950.0,1.31856661]
[1747318321367,0.21777039,101960.0,101950.0,1.11258349]
[1747318321495,0.20796292,101960.0,101950.0,0.72742085]
[1747318321696,0.20796292,101960.0,101950.0,1.11258349]
[1747318322356,0.19815535,101960.0,101950.0,1.11258349]
[1747318322569,0.19815535,101960.0,101950.0,1.08198349]
[1747318322763,0.19815535,101960.0,101950.0,0.66582085]
[1747318322920,0.26185535,101960.0,101950.0,0.65128]
[1747318323121,0.7770805,101960.0,101950.0,0.4238]
[1747318323343,0.7770805,101960.0,101950.0,0.65128]
[1747318323564,0.69916475,101960.0,101950.0,0.65128]
[1747318325104,0.92636475,101960.0,101950.0,0.65128]
[1747318325316,0.86266475,101960.0,101950.0,0.65128]
[1747318325723,0.63546475,101960.0,101950.0,0.65128]
[1747318325961,0.92536475,101960.0,101950.0,0.65128]
[1747318326342,0.92536475,101960.0,101950.0,0.4238]
[1747318326343,0.99735346,101960.0,101950.0,0.4238]
[1747318326568,0.99735346,101960.0,101950.0,0.65128]
[1747318328071,0.99735346,101960.0,101950.0,0.4238]
[1747318328337,0.61801253,101940.0,101930.0,0.22800345]
[1747318328522,0.65312193,101940.0,101930.0,0.22800345]
[1747318328716,0.79278222,101940.0,101930.0,0.22800345]
[1747318328896,0.44297301,101940.0,101930.0,0.42421653]
[1747318329099,0.44297301,101940.0,101930.0,0.64476609]
[1747318329533,0.44397301,101940.0,101930.0,0.22800345]
[1747318329930,0.21681301,101940.0,101930.0,0.22800345]
[1747318330159,0.21681301,101940.0,101930.0,0.85038972]
[1747318330160,0.45374107,101940.0,101930.0,0.85038972]
[1747318330377,0.01080892,101940.0,101930.0,0.91565081]
[1747318330510,0.01080892,101940.0,101930.0,1.01296021]
[1747318330714,0.001,101940.0,101930.0,1.01296021]
[1747318330938,0.01180901,101940.0,101930.0,1.01296021]
[1747318331145,0.22762193,101940.0,101930.0,0.4021537]
[1747318331320,0.21781272,101940.0,101930.0,0.00048345]
[1747318331508,0.21781272,101940.0,101930.0,0.22800345]
[1747318331909,0.78554458,101940.0,101930.0,0.22800345]
[1747318332327,0.78454458,101940.0,101930.0,0.22800345]
[1747318332530,0.78454458,101940.0,101930.0,0.23000345]
[1747318332829,0.78354458,101940.0,101930.0,0.00248345]
[1747318333030,0.86146033,101940.0,101930.0,0.00348345]
[1747318333458,0.86146033,101940.0,101930.0,0.00148345]
[1747318333656,0.86146033,101940.0,101930.0,0.00048345]
[1747318334035,0.86246033,101940.0,101930.0,0.00048345]
[1747318334363,0.86146033,101940.0,101930.0,0.00048345]
[1747318334838,0.86646033,101940.0,101930.0,0.00148345]
[1747318335173,0.89100118,101940.0,101930.0,0.00148345]
[1747318335360,0.89500118,101940.0,101930.0,0.00148345]
[1747318335973,0.89000118,101940.0,101930.0,0.00048345]
[1747318336383,0.89100118,101940.0,101930.0,0.00148345]
[1747318336618,0.21591844,101890.0,101880.0,0.42376]
[1747318336818,0.44295844,101890.0,101880.0,0.65128]
[1747318337648,0.00981363,101890.0,101880.0,1.4413348]
[1747318337872,0.22570992,101900.0,101890.0,0.0637]
[1747318338024,0.226192,101900.0,101890.0,0.60043349]
[1747318338223,0.226192,101900.0,101890.0,0.59847081]
[1747318338224,0.21637953,101900.0,101890.0,0.59847081]
[1747318338432,0.21637953,101900.0,101890.0,0.60828521]
[1747318338664,0.01029494,101900.0,101890.0,0.82420327]
[1747318338835,0.00048208,101900.0,101890.0,0.82420327]
[1747318339037,0.00048208,101900.0,101890.0,1.26151267]
[1747318339464,0.00148208,101900.0,101890.0,1.26151267]
[1747318340011,0.30421026,101930.0,101910.0,0.30492911]
[1747318340210,0.22566534,101920.0,101910.0,0.26191691]
[1747318340383,0.23547686,101920.0,101910.0,0.79327081]
[1747318340589,0.22566534,101920.0,101910.0,1.05145964]
[1747318340920,0.24528837,101920.0,101910.0,0.53122978]
[1747318341118,0.23547666,101920.0,101910.0,0.54104178]
[1747318341324,0.22566534,101920.0,101910.0,0.54104178]
[1747318341530,0.23545336,101930.0,101920.0,0.27270706]
[1747318341739,0.23545394,101930.0,101920.0,0.29429602]
[1747318341948,0.00980988,101930.0,101920.0,0.81452608]
[1747318342171,0.001,101940.0,101930.0,0.20602373]
[1747318342371,0.001,101940.0,101930.0,1.24951535]
[1747318342580,0.22662173,101940.0,101930.0,1.03368146]
[1747318342783,0.21681272,101940.0,101930.0,0.50364085]
[1747318342984,0.21681272,101940.0,101930.0,0.4238]
[1747318343410,0.21681214,101940.0,101930.0,0.4238]
[1747318343657,0.20700284,101940.0,101930.0,1.18421468]
[1747318343776,0.21681205,101940.0,101930.0,1.24781468]
[1747318343976,0.23643094,101940.0,101930.0,1.02217081]
[1747318344228,0.22562193,101940.0,101930.0,0.43834085]
[1747318344396,0.21581272,101940.0,101930.0,0.4238]
[1747318344607,0.21581272,101940.0,101930.0,0.6508]
[1747318345437,0.21681272,101940.0,101930.0,1.17102996]
[1747318345673,0.20700275,101940.0,101930.0,1.2045047]
[1747318345855,0.20700275,101940.0,101930.0,1.4631047]
[1747318346055,0.23643075,101940.0,101930.0,1.4631048]
[1747318346473,0.01080892,101940.0,101930.0,1.48272504]
[1747318346709,0.22662145,101940.0,101930.0,0.72704085]